fUSD/lending_fUSD_20250428
["ID","MTS","AMOUNT","RATE_DAILY","PERIOD"]
[359198065,1745804708748,480.0,0.00041095,30]
[359198066,1745804708988,480.0,0.00041095,30]
[359198067,1745804709234,480.0,0.00041095,30]
[359198068,1745804709344,480.0,0.00041095,30]
[359198069,1745804709483,480.0,0.00041095,30]
[359198070,1745804709753,465.07615859,0.00041095,30]
[359198071,1745804709969,381.49808534,0.00041095,30]
[359198072,1745804710512,480.0,0.00041095,30]
[359198073,1745804710780,151.9,0.00041095,30]
[359198074,1745804710902,480.0,0.00041095,30]
[359198075,1745804711152,394.10214975,0.00041095,30]
[359198076,1745804712508,562.91,0.00041095,30]
[359198077,1745804713007,400.0,0.00041095,30]
[359198078,1745804713682,175.40489243,0.00041095,30]
[359198079,1745804714187,513.32,0.00041095,30]
[359198080,1745804714769,480.0,0.00041095,30]
[359198081,1745804715033,426.21,0.00041095,30]
[359198082,1745804715122,480.0,0.00041095,30]
[359198083,1745804715365,480.0,0.00041095,30]
[359198084,1745804715401,329.84589436,0.00041095,30]
[359198085,1745804715690,215.16,0.00041095,30]
[359198086,1745804717326,480.0,0.00041095,30]
[359198087,1745804717569,480.0,0.00041095,30]
[359198088,1745804717822,480.0,0.00041095,30]
[359198089,1745804718056,175.22247813,0.00041095,30]
[359198090,1745804719010,524.72,0.00041095,30]
[359198091,1745804719162,411.89570856,0.00041095,30]
[359198092,1745804719692,480.0,0.00041095,30]
[359198093,1745804719812,173.43,0.00041095,30]
[359198094,1745804720672,480.0,0.00041095,30]
[359198095,1745804720782,400.0,0.00041095,30]
[359198096,1745804720926,480.0,0.00041095,30]
[359198097,1745804721344,400.0,0.00041095,30]
[359198098,1745804721382,319.78,0.00041095,30]
[359198099,1745804721714,480.0,0.00041095,30]
[359198100,1745804721910,400.0,0.00041095,30]
[359198101,1745804721965,480.0,0.00041095,30]
[359198102,1745804722246,270.42890918,0.00041095,30]
[359198103,1745804723174,480.0,0.00041095,30]
[359198104,1745804723359,480.0,0.00041095,30]
[359198105,1745804723404,344.71,0.00041095,30]
[359198106,1745804723598,480.0,0.00041095,30]
[359198107,1745804723859,269.0642476,0.00041095,30]
[359198108,1745804724306,411.59,0.00041095,30]
[359198109,1745804726899,479.38,0.00041095,30]
[359198110,1745804727485,400.0,0.00041095,30]
[359198111,1745804727617,480.0,0.00041095,30]
[359198112,1745804727780,480.0,0.00041095,30]
[359198113,1745804727819,480.0,0.00041095,30]
[359198114,1745804727868,515.39,0.00041095,30]
[359198115,1745804728042,397.53,0.00041095,30]
[359198116,1745804728079,480.0,0.00041095,30]
[359198117,1745804728331,480.0,0.00041095,30]
[359198118,1745804728380,400.0,0.00041095,30]
[359198119,1745804728445,480.0,0.00041095,30]
[359198120,1745804728578,181.93910121,0.00041095,30]
[359198121,1745804728688,491.21,0.00041095,30]
[359198122,1745804729669,415.4274991,0.00041095,30]
[359198123,1745804730231,480.0,0.00041095,30]
[359198124,1745804730461,480.0,0.00041095,30]
[359198125,1745804730499,336.4265192,0.00041095,30]
[359198126,1745804730536,480.0,0.00041095,30]
[359198127,1745804730706,480.0,0.00041095,30]
[359198128,1745804730783,480.0,0.00041095,30]
[359198129,1745804730947,480.0,0.00041095,30]
[359198130,1745804731053,480.0,0.00041095,30]
[359198131,1745804731195,619.76,0.00041095,30]
[359198132,1745804731291,480.0,0.00041095,30]
[359198133,1745804731334,400.0,0.00041095,30]
[359198134,1745804731535,480.0,0.00041095,30]
[359198135,1745804731727,400.0,0.00041095,30]
[359198136,1745804731775,534.3549192,0.00041095,30]
[359198137,1745804731857,480.0,0.00041095,30]
[359198138,1745804732115,480.0,0.00041095,30]
[359198139,1745804732351,480.0,0.00041095,30]
[359198140,1745804732593,480.0,0.00041095,30]
[359198141,1745804732867,480.0,0.00041095,30]
[359198142,1745804733031,480.0,0.00041095,30]
[359198143,1745804733135,480.0,0.00041095,30]
[359198144,1745804733292,480.0,0.00041095,30]
[359198145,1745804733338,480.0,0.00041095,30]
[359198146,1745804733378,480.0,0.00041095,30]
[359198147,1745804733533,480.0,0.00041095,30]
[359198148,1745804733581,358.10987707,0.00041095,30]
[359198149,1745804733647,480.0,0.00041095,30]
[359198150,1745804733716,549.91,0.00041095,30]
[359198151,1745804733774,480.0,0.00041095,30]
[359198152,1745804734023,480.0,0.00041095,30]
[359198153,1745804734223,214.89,0.00041095,30]
[359198154,1745804734511,271.18,0.00041095,30]
[359198155,1745804734777,480.0,0.00041095,30]
[359198156,1745804735032,342.14,0.00041095,30]
[359198157,1745804735924,480.0,0.00041095,30]
[359198158,1745804736489,480.0,0.00041095,30]
[359198159,1745804736527,480.0,0.00041095,30]
[359198160,1745804736566,400.0,0.00041095,30]
[359198161,1745804736657,480.0,0.00041095,30]
[359198162,1745804737026,480.0,0.00041095,30]
[359198163,1745804737084,400.0,0.00041095,30]
[359198164,1745804737278,223.48,0.00041095,30]
[359198165,1745804739418,490.15141822,0.00041095,30]
[359198166,1745804740098,480.0,0.00041095,30]
[359198167,1745804740336,329.80228648,0.00041095,30]
[359198168,1745804740789,480.0,0.00041095,30]
[359198169,1745804741026,301.75,0.00041095,30]
[359198170,1745804741295,400.0,0.00041095,30]
[359198171,1745804742956,546.02,0.00041095,30]
[359198172,1745804743347,400.0,0.00041095,30]
[359198174,1745804745360,480.0,0.00041095,30]
[359198175,1745804745615,228.0,0.00041095,30]
[359198176,1745804746091,400.0,0.00041095,30]
[359198177,1745804746374,412.61972731,0.00041095,30]
[359198178,1745804747907,451.86,0.00041095,30]
[359198179,1745804748097,480.0,0.00041095,30]
[359198180,1745804748239,400.0,0.00041095,30]
[359198181,1745804748388,215.56,0.00041095,30]
[359198182,1745804749601,480.0,0.00041095,30]
[359198183,1745804749686,400.0,0.00041095,30]
[359198184,1745804749832,480.0,0.00041095,30]
[359198185,1745804750070,246.55070895,0.00041095,30]
[359198186,1745804751487,400.0,0.00041095,30]
[359198187,1745804752114,544.48202118,0.00041095,30]
[359198188,1745804753187,400.0,0.00041095,30]
[359198189,1745804753699,400.0,0.00041095,30]
[359198190,1745804756971,400.0,0.00041095,30]
[359198191,1745804757067,480.0,0.00041095,30]
[359198192,1745804757155,400.0,0.00041095,30]
[359198193,1745804757339,480.0,0.00041095,30]
[359198194,1745804757615,293.56,0.00041095,30]
[359198195,1745804761666,3811.12,0.00041095,30]
[359198196,1745804761915,3811.12,0.00041095,30]
[359198197,1745804762163,400.0,0.00041095,30]
[359198198,1745804762203,3811.12,0.00041095,30]
[359198199,1745804762571,3811.12,0.00041095,30]
[359198200,1745804762809,3811.12,0.00041095,30]
[359198201,1745804763071,3811.12,0.00041095,30]
[359198202,1745804763355,3811.12,0.00041095,30]
[359198203,1745804763625,3811.12,0.00041095,30]
[359198204,1745804763805,1027.0,0.00041095,30]
[359198205,1745804763884,3811.12,0.00041095,30]
[359198206,1745804764217,3811.12,0.00041095,30]
[359198207,1745804764530,3811.12,0.00041095,30]
[359198208,1745804765126,3811.12,0.00041095,30]
[359198209,1745804766440,3811.12,0.00041095,30]
[359198210,1745804766697,3811.12,0.00041095,30]
[359198211,1745804766916,526.46137633,0.00041095,30]
[359198212,1745804767132,3811.12,0.00041095,30]
[359198213,1745804767248,3811.12,0.00041095,30]
[359198214,1745804767506,3811.12,0.00041095,30]
[359198215,1745804767684,480.0,0.00041095,30]
[359198216,1745804767722,480.0,0.00041095,30]
[359198217,1745804767762,3811.12,0.00041095,30]
[359198218,1745804767936,475.65,0.00041095,30]
[359198219,1745804768007,3811.12,0.00041095,30]
[359198220,1745804768047,330.02,0.00041095,30]
[359198221,1745804768389,3811.12,0.00041095,30]
[359198222,1745804768622,3811.12,0.00041095,30]
[359198223,1745804768867,3811.12,0.00041095,30]
[359198224,1745804769119,3811.12,0.00041095,30]
[359198225,1745804769619,3811.2,0.00041095,30]
[359198226,1745804770058,481.9,0.00041095,30]
[359198227,1745804771346,400.0,0.00041095,30]
[359198228,1745804772444,400.0,0.00041095,30]
[359198229,1745804773026,154.9,0.00041096,30]
[359198230,1745804773080,480.0,0.00041095,30]
[359198231,1745804773351,234.85,0.00041095,30]
[359198232,1745804775140,10226.60038689,0.00041095,30]
[359198233,1745804775179,400.0,0.00041095,30]
[359198234,1745804777103,295.52138292,0.00041095,30]
[359198235,1745804778176,480.0,0.00041095,30]
[359198236,1745804778426,480.0,0.00041095,30]
[359198237,1745804778684,230.85,0.00041095,30]
[359198238,1745804783637,618.53,0.00041095,30]
[359198239,1745804784001,400.0,0.00041095,30]
[359198240,1745804785371,445.57,0.00041095,30]
[359198241,1745804786075,604.32,0.00041095,30]
[359198242,1745804787685,535.25,0.00041095,30]
[359198243,1745804787723,420.24565754,0.00041095,30]
[359198244,1745804788043,480.0,0.00041095,30]
[359198245,1745804788287,480.0,0.00041095,30]
[359198246,1745804788524,386.91,0.00041095,30]
[359198247,1745804790402,400.0,0.00041095,30]
[359198248,1745804791439,249.38908942,0.00041095,30]
[359198249,1745804792299,400.0,0.00041095,30]
[359198250,1745804792702,566.63,0.00041095,30]
[359198251,1745804795136,445.16,0.00041095,30]
[359198252,1745804798032,480.0,0.00041095,30]
[359198253,1745804798439,480.0,0.00041095,30]
[359198254,1745804798523,423.43742281,0.00041095,30]
[359198255,1745804798672,501.83913164,0.00041095,30]
[359198256,1745804799946,400.0,0.00041095,30]
[359198257,1745804801938,400.0,0.00041095,30]
[359198258,1745804802730,480.0,0.00041095,30]
[359198259,1745804802995,320.0,0.00041095,30]
[359198260,1745804805496,400.0,0.00041095,30]
[359198261,1745804807172,400.0,0.00041095,30]
[359198262,1745804809246,400.0,0.00041095,30]
[359198263,1745804811013,400.0,0.00041095,30]
[359198264,1745804811334,400.0,0.00041095,30]
[359198265,1745804813000,358.999558,0.000193,2]
[359198266,1745804814149,530.08867019,0.00041095,30]
[359198267,1745804814883,400.0,0.00041095,30]
[359198268,1745804816677,417.75753632,0.00041095,30]
[359198269,1745804818723,400.0,0.00041095,30]
[359198270,1745804818938,278.42220044,0.00041095,30]
[359198271,1745804819393,400.0,0.00041095,30]
[359198272,1745804819519,418.7312051,0.00041095,30]
[359198273,1745804821489,400.0,0.00041095,30]
[359198274,1745804822831,416.776044,0.00041095,30]
[359198275,1745804823425,565.83,0.00041095,30]
[359198276,1745804824870,250.0,0.00017,2]
[359198277,1745804825113,237.94865063,0.00041096,30]
[359198278,1745804825943,300.0,0.00019,2]
[359198279,1745804832694,428.01790581,0.00041095,30]
[359198280,1745804834524,551.4,0.00041095,30]
[359198282,1745804835597,480.63,0.00041095,30]
[359198283,1745804835641,598.11,0.00041095,30]
[359198284,1745804836383,400.0,0.00041095,30]
[359198285,1745804837554,400.0,0.00041095,30]
[359198286,1745804841642,547.34,0.00041095,30]
[359198287,1745804842839,417.38460506,0.00041095,30]
[359198299,1745804846398,313.15570897,0.00041095,30]
[359198300,1745804849162,438.1,0.00041095,30]
[359198301,1745804852034,400.0,0.00041095,30]
[359198302,1745804852923,594.65,0.00041095,30]
[359198303,1745804854726,480.0,0.00041095,30]
[359198304,1745804854952,432.13,0.00041095,30]
[359198305,1745804855493,480.0,0.00041095,30]
[359198306,1745804855733,157.89,0.00041095,30]
[359198307,1745804856991,312.03424732,0.00041095,30]
[359198308,1745804857179,420.5450389,0.00041095,30]
[359198309,1745804859206,400.0,0.00041095,30]
[359198310,1745804860498,400.0,0.00041095,30]
[359198311,1745804860630,411.236788,0.00041095,30]
[359198312,1745804862937,400.0,0.00041095,30]
[359198313,1745804866597,400.0,0.00041095,30]
[359198314,1745804867058,414.93572028,0.00041095,30]
[359198315,1745804868431,454.14,0.00041095,30]
[359198316,1745804868709,400.0,0.00041095,30]
[359198317,1745804870640,400.0,0.00041095,30]
[359198318,1745804872412,480.0,0.00041095,30]
[359198319,1745804872631,400.0,0.00041095,30]
[359198320,1745804873054,480.0,0.00041095,30]
[359198321,1745804873302,459.14,0.00041095,30]
[359198322,1745804874509,431.537392,0.00041095,30]
[359198323,1745804875143,400.0,0.00041095,30]
[359198324,1745804875766,400.0,0.00041095,30]
[359198325,1745804876723,413.36841512,0.00041095,30]
[359198326,1745804877765,588.62,0.00041095,30]
[359198327,1745804880631,400.0,0.00041095,30]
[359198328,1745804881406,480.0,0.00041095,30]
[359198329,1745804881643,320.0,0.00041095,30]
[359198330,1745804883560,480.0,0.00041095,30]
[359198331,1745804883807,245.97503682,0.00041095,30]
[359198332,1745804886860,400.0,0.00041095,30]
[359198333,1745804888102,400.0,0.00041095,30]
[359198334,1745804891825,400.0,0.00041095,30]
[359198335,1745804892521,180.86494397,0.00041095,30]
[359198336,1745804893021,480.0,0.00041095,30]
[359198337,1745804893473,501.65,0.00041095,30]
[359198338,1745804897239,480.0,0.00041095,30]
[359198339,1745804897290,435.26052945,0.00041095,30]
[359198340,1745804897480,320.0,0.00041095,30]
[359198341,1745804900733,400.0,0.00041095,30]
[359198342,1745804901653,480.0,0.00041095,30]
[359198343,1745804901936,320.0,0.00041095,30]
[359198344,1745804902522,400.0,0.00041095,30]
[359198345,1745804903169,480.0,0.00041095,30]
[359198346,1745804903409,214.78,0.00041095,30]
[359198347,1745804905511,1000.0,0.00018894,2]
[359198348,1745804906983,480.0,0.00041095,30]
[359198349,1745804907244,480.0,0.00041095,30]
[359198350,1745804907475,610.14,0.00041095,30]
[359198351,1745804910480,400.0,0.00041095,30]
[359198352,1745804910524,480.0,0.00041095,30]
[359198353,1745804910757,320.0,0.00041095,30]
[359198354,1745804914118,480.0,0.00041095,30]
[359198355,1745804914365,260.24,0.00041095,30]
[359198356,1745804914408,480.0,0.00041095,30]
[359198357,1745804914669,368.85,0.00041095,30]
[359198358,1745804915125,23900.0,0.00018885,2]
[359198359,1745804916404,400.0,0.00041095,30]
[359198360,1745804917480,400.0,0.00041095,30]
[359198361,1745804917687,512.22890254,0.00041095,30]
[359198362,1745804918007,400.0,0.00041095,30]
[359198363,1745804918497,556.1,0.00041095,30]
[359198364,1745804921518,400.0,0.00041095,30]
[359198365,1745804923306,400.0,0.00041095,30]
[359198366,1745804923352,480.0,0.00041095,30]
[359198367,1745804923548,575.85,0.00041095,30]
[359198368,1745804925113,400.0,0.00041095,30]
[359198369,1745804925528,400.0,0.00041095,30]
[359198370,1745804928132,431.67345057,0.00041095,30]
[359198371,1745804930209,480.0,0.00041095,30]
[359198372,1745804930481,320.0,0.00041095,30]
[359198373,1745804930872,400.0,0.00041095,30]
[359198374,1745804932394,480.0,0.00041095,30]
[359198375,1745804932498,480.0,0.00041095,30]
[359198376,1745804932738,171.57,0.00041095,30]
[359198377,1745804934554,480.0,0.00041095,30]
[359198378,1745804934592,480.0,0.00041095,30]
[359198379,1745804934800,360.17,0.00041095,30]
[359198380,1745804934847,450.31,0.00041095,30]
[359198381,1745804934920,400.0,0.00041095,30]
[359198382,1745804936637,311.92610825,0.00041095,30]
[359198383,1745804936727,480.0,0.00041095,30]
[359198384,1745804936845,400.0,0.00041095,30]
[359198385,1745804936954,414.5,0.00041095,30]
[359198386,1745804941733,412.53749422,0.00041095,30]
[359198387,1745804941821,566.14,0.00041095,30]
[359198388,1745804942011,534.45,0.00041095,30]
[359198389,1745804942304,400.0,0.00041095,30]
[359198390,1745804944690,400.0,0.00041095,30]
[359198391,1745804945308,198.16760794,0.00041095,30]
[359198392,1745804946525,400.0,0.00041095,30]
[359198393,1745804949017,400.0,0.00041095,30]
[359198394,1745804949352,4000.0,0.00018848,2]
[359198395,1745804950037,480.0,0.00041095,30]
[359198396,1745804950262,332.76,0.00041095,30]
[359198397,1745804950707,573.18,0.00041095,30]
[359198398,1745804951172,400.0,0.00041095,30]
[359198399,1745804952333,400.0,0.00041095,30]
[359198400,1745804953617,480.0,0.00041095,30]
[359198401,1745804953655,480.0,0.00041095,30]
[359198402,1745804953908,289.99,0.00041095,30]
[359198403,1745804953951,499.39,0.00041095,30]
[359198404,1745804954813,437.58,0.00041095,30]
[359198405,1745804955551,480.0,0.00041095,30]
[359198406,1745804955588,480.0,0.00041095,30]
[359198407,1745804955793,387.12,0.00041095,30]
[359198408,1745804955848,480.0,0.00041095,30]
[359198409,1745804956069,480.0,0.00041095,30]
[359198410,1745804956381,449.42,0.00041095,30]
[359198411,1745804956448,480.0,0.00041095,30]
[359198412,1745804956700,480.0,0.00041095,30]
[359198413,1745804957077,480.0,0.00041095,30]
[359198414,1745804957394,480.0,0.00041095,30]
[359198415,1745804957680,480.0,0.00041095,30]
[359198416,1745804957951,480.0,0.00041095,30]
[359198417,1745804958188,400.0,0.00041095,30]
[359198418,1745804958227,457.49,0.00041095,30]
[359198419,1745804958288,552.77,0.00041095,30]
[359198420,1745804958999,398.67609659,0.00041095,30]
[359198421,1745804959987,480.0,0.00041095,30]
[359198422,1745804960260,480.0,0.00041095,30]
[359198423,1745804960488,480.0,0.00041095,30]
[359198424,1745804960721,480.0,0.00041095,30]
[359198425,1745804960965,208.94,0.00041095,30]
[359198426,1745804963107,580.91,0.00041095,30]
[359198427,1745804969404,480.0,0.00041095,30]
[359198428,1745804969445,420.31859913,0.00041095,30]
[359198429,1745804969999,172.08,0.00041095,30]
[359198430,1745804971668,442.11371368,0.00041095,30]
[359198431,1745804971832,400.0,0.00041095,30]
[359198432,1745804971991,400.0,0.00041095,30]
[359198433,1745804974503,480.0,0.00041095,30]
[359198434,1745804974841,176.69,0.00041095,30]
[359198435,1745804976092,500.0,0.00041095,30]
[359198436,1745804977198,400.0,0.00041095,30]
[359198437,1745804979556,588.88800833,0.00041095,30]
[359198438,1745804980905,400.0,0.00041095,30]
[359198439,1745804984661,500.0,0.00041095,30]
[359198440,1745804985146,480.0,0.00041095,30]
[359198441,1745804985398,375.12,0.00041095,30]
[359198442,1745804987366,400.0,0.00041095,30]
[359198443,1745804988677,480.0,0.00041095,30]
[359198444,1745804988913,480.0,0.00041095,30]
[359198445,1745804989160,181.11,0.00041095,30]
[359198446,1745804992776,400.0,0.00041095,30]
[359198447,1745804992973,400.0,0.00041095,30]
[359198448,1745804996609,400.0,0.00041095,30]
[359198449,1745804997571,480.0,0.00041095,30]
[359198450,1745804997618,480.0,0.00041095,30]
[359198451,1745804997744,480.0,0.00041095,30]
[359198452,1745804997811,320.0,0.00041095,30]
[359198453,1745804997850,330.77250961,0.00041095,30]
[359198454,1745804997987,480.0,0.00041095,30]
[359198455,1745804998083,8699.06354763,0.00041095,30]
[359198456,1745804998245,480.0,0.00041095,30]
[359198457,1745804998488,235.26,0.00041095,30]
[359198458,1745804999107,409.22407886,0.00041095,30]
[359198459,1745805001589,540.23013781,0.00041095,30]
[359198460,1745805001912,400.0,0.00041095,30]
[359198461,1745805002866,4899.05,0.00018831,2]
[359198462,1745805003013,480.0,0.00041095,30]
[359198463,1745805003260,320.0,0.00041095,30]
[359198464,1745805004067,1021.09426677,0.00041095,30]
[359198465,1745805004111,444.3,0.00041095,30]
[359198466,1745805005271,313.47975474,0.00041095,30]
[359198467,1745805005403,2011.0,0.0004109,30]
[359198468,1745805006725,480.0,0.00041095,30]
[359198469,1745805006995,337.32401786,0.00041095,30]
[359198470,1745805008473,420.50345971,0.00041095,30]
[359198471,1745805010546,400.0,0.00041095,30]
[359198472,1745805013540,480.0,0.00041095,30]
[359198473,1745805013597,400.0,0.00041095,30]
[359198474,1745805013780,258.99,0.00041095,30]
[359198475,1745805014542,2004.0262915,0.00041,30]
[359198476,1745805015974,480.0,0.00041095,30]
[359198477,1745805016216,265.62,0.00041095,30]
[359198478,1745805017161,413.28284899,0.00041095,30]
[359198479,1745805019151,22960.47,0.00018818,2]
[359198480,1745805019357,2533.49,0.00018937,2]
[359198481,1745805020376,400.0,0.00041095,30]
[359198482,1745805021572,480.0,0.00041095,30]
[359198483,1745805021652,540.67,0.00041095,30]
[359198484,1745805021809,320.0,0.00041095,30]
[359198485,1745805022776,485.66,0.00041095,30]
[359198486,1745805023518,400.0,0.00041095,30]
[359198487,1745805024598,480.0,0.00041095,30]
[359198488,1745805025313,260.19,0.00041095,30]
[359198489,1745805025357,307.29354418,0.00041095,30]
[359198490,1745805027504,400.15,0.00041095,30]
[359198491,1745805028297,400.0,0.00041095,30]
[359198492,1745805028622,400.0,0.00041095,30]
[359198493,1745805029550,400.0,0.00041095,30]
[359198494,1745805030750,480.0,0.00041095,30]
[359198495,1745805031029,320.0,0.00041095,30]
[359198505,1745805031882,480.0,0.00041095,30]
[359198509,1745805031928,-544.56357944,0.00019397,2]
[359198519,1745805032014,-1105.74642056,0.00019397,2]
[359198520,1745805032028,-250.0,0.00019447,2]
[359198521,1745805032040,-153.23236294,0.00019498,2]
[359198522,1745805032051,-200.0,0.00019598,2]
[359198523,1745805032060,-443.351,0.000197,2]
[359198524,1745805032069,-7153.4422765,0.00019706,2]
[359198525,1745805032119,-400.0,0.00019706,2]
[359198526,1745805032233,320.0,0.00041095,30]
[359198530,1745805032283,-528.30000001,0.00019706,2]
[359198534,1745805032326,-4418.25772349,0.00019706,2]
[359198536,1745805032335,-1200.0,0.00019714,2]
[359198538,1745805032345,-12500.0,0.00019715,2]
[359198540,1745805032354,-318.85025708,0.00019724,2]
[359198542,1745805032366,-694.47114358,0.00019724,2]
[359198546,1745805032390,-2940.0,0.00019724,2]
[359198580,1745805034746,480.0,0.00041095,30]
[359198581,1745805035504,320.0,0.00041095,30]
[359198582,1745805036621,400.0,0.00041095,30]
[359198583,1745805037167,480.0,0.00041095,30]
[359198584,1745805037433,252.97,0.00041095,30]
[359198604,1745805038065,-1772.4011,0.00019724,2]
[359198606,1745805038077,-1042.83006,0.00019724,2]
[359198608,1745805038089,-752.65,0.00019724,2]
[359198613,1745805038170,-3155.60176588,0.00019724,2]
[359198615,1745805038181,-1823.19567346,0.00019724,2]
[359198616,1745805038190,-272.97369329,0.00019732,2]
[359198617,1745805038201,-227.02630671,0.00019732,2]
[359198618,1745805038211,-500.0,0.00019732,2]
[359198619,1745805038222,-487.17847124,0.00019732,2]
[359198620,1745805038231,-695.51530206,0.00019733,2]
[359198621,1745805038246,-2409.84547592,0.00019733,2]
[359198622,1745805038259,-315.00611737,0.00019733,2]
[359198623,1745805038273,-312.61199765,0.00019733,2]
[359198624,1745805038329,-968.48426381,0.00019733,2]
[359198625,1745805038341,-7798.53684319,0.00019733,2]
[359198626,1745805038352,-12500.0,0.00019742,2]
[359198627,1745805038361,-300.0,0.00019749,2]
[359198628,1745805038371,-12500.0,0.0001975,2]
[359198629,1745805038381,-12500.0,0.00019759,2]
[359198631,1745805038390,-12500.0,0.00019768,2]
[359198633,1745805038400,-12500.0,0.00019777,2]
[359198635,1745805038410,-12500.0,0.00019786,2]
[359198637,1745805038419,-500.0,0.00019793,2]
[359198639,1745805038429,-500.0,0.00019793,2]
[359198641,1745805038439,-250.5711224,0.00019793,2]
[359198643,1745805038448,-12500.0,0.00019794,2]
[359198645,1745805038456,-580.40403606,0.00019799,2]
[359198647,1745805038466,-27840.2996,0.000198,2]
[359198649,1745805038477,-446.4104,0.000198,2]
[359198651,1745805038486,-28208.4069,0.000198,2]
[359198653,1745805038498,-1000.0,0.000198,2]
[359198655,1745805038507,-12500.0,0.00019803,2]
[359198657,1745805038517,-12500.0,0.00019812,2]
[359198659,1745805038527,-12500.0,0.00019821,2]
[359198661,1745805038536,-12500.0,0.0001983,2]
[359198663,1745805038546,-12500.0,0.00019838,2]
[359198665,1745805038555,-12500.0,0.00019847,2]
[359198666,1745805038564,-12500.0,0.00019856,2]
[359198668,1745805038573,-150.0,0.00019863,2]
[359198670,1745805038582,-12500.0,0.00019865,2]
[359198672,1745805038591,-205.86243158,0.00019873,2]
[359198674,1745805038600,-500.0,0.00019873,2]
[359198676,1745805038610,-12500.0,0.00019874,2]
[359198678,1745805038619,-12500.0,0.00019882,2]
[359198681,1745805038629,-1000.0,0.00019886,2]
[359198684,1745805038638,-12500.0,0.00019891,2]
[359198687,1745805038647,-200.0,0.00019896,2]
[359198690,1745805038656,-7748.39767822,0.000199,2]
[359198693,1745805038665,-500.0,0.000199,2]
[359198695,1745805038674,-1251.43039438,0.000199,2]
[359198698,1745805038683,-200.0,0.00019953,2]
[359198701,1745805038693,-301.72324775,0.00019973,2]
[359198703,1745805038702,-207.52480789,0.00019973,2]
[359198705,1745805038711,-500.95321139,0.00019973,2]
[359198707,1745805038721,-501.01718333,0.00019973,2]
[359198709,1745805038730,-500.0,0.00019973,2]
[359198711,1745805038740,-500.79591442,0.00019973,2]
[359198713,1745805038751,-43478.4399772,0.00019986,2]
[359198715,1745805038761,-13328.2687134,0.00019986,2]
[359198717,1745805038770,-4493.4535183,0.00019986,2]